bitfinex/quotes_BTCUSD_20240712
["timestamp","ask_amount","ask_price","bid_price","bid_amount"]
[1720789440978,0.07154754,57536.0,57530.0,0.061]
[1720789441234,0.07454754,57536.0,57530.0,0.061]
[1720789442151,0.07444754,57536.0,57530.0,0.061]
[1720789442403,0.12320878,57535.0,57530.0,0.061]
[1720789443080,0.12320878,57535.0,57531.0,0.08511435]
[1720789443320,0.12320878,57535.0,57530.0,0.061]
[1720789443560,0.1758359,57531.0,57530.0,0.061]
[1720789444204,0.1758359,57531.0,57530.0,0.059]
[1720789444431,0.20594037,57531.0,57530.0,0.0591]
[1720789445355,0.22261116,57531.0,57530.0,0.0621]
[1720789445794,0.04677526,57531.0,57530.0,0.0621]
[1720789446279,0.01667079,57531.0,57530.0,0.22311435]
[1720789446504,0.01667079,57531.0,57530.0,0.138]
[1720789451610,0.01647606,57531.0,57530.0,0.138]
[1720789454228,0.17258113,57531.0,57530.0,0.338]
[1720789454446,0.01647606,57531.0,57530.0,0.338]
[1720789454667,0.03555293,57531.0,57530.0,0.138]
[1720789455117,0.01647606,57531.0,57530.0,0.138]
[1720789455352,0.01608121,57531.0,57530.0,0.138]
[1720789457144,0.01608121,57531.0,57530.0,0.0031]
[1720789457581,0.19169249,57531.0,57530.0,0.0031]
[1720789458275,0.19223839,57531.0,57530.0,0.0031]
[1720789458485,0.06892888,57531.0,57530.0,0.0031]
[1720789458695,0.24460388,57531.0,57530.0,0.0031]
[1720789458935,0.06892888,57531.0,57530.0,0.0031]
[1720789459375,0.06892888,57531.0,57528.0,0.009097]
[1720789459592,0.2544,57529.0,57528.0,0.009097]
[1720789459822,0.29834856,57529.0,57528.0,0.009097]
[1720789460258,0.06641873,57529.0,57528.0,0.009097]
[1720789460504,0.08460634,57529.0,57528.0,0.009097]
[1720789460720,0.08460634,57529.0,57521.0,0.142213]
[1720789460721,0.09060634,57529.0,57521.0,0.142213]
[1720789460932,0.09060634,57529.0,57521.0,0.002913]
[1720789460933,0.17570861,57523.0,57521.0,0.002913]
[1720789461146,0.19253457,57522.0,57521.0,0.002913]
[1720789461360,0.01682596,57522.0,57521.0,0.002913]
[1720789461851,0.19253564,57522.0,57521.0,0.002913]
[1720789462071,0.03607952,57522.0,57521.0,0.003913]
[1720789462767,0.03607952,57522.0,57521.0,0.002913]
[1720789463003,0.2117892,57522.0,57521.0,0.003913]
[1720789463627,0.19253564,57522.0,57521.0,0.003913]
[1720789464085,0.01672596,57522.0,57521.0,0.003913]
[1720789464263,0.01672596,57522.0,57521.0,0.004913]
[1720789464532,0.19243564,57522.0,57521.0,0.004913]
[1720789464752,0.2,57526.0,57521.0,0.004913]
[1720789464968,0.17564887,57522.0,57521.0,0.004913]
[1720789465187,0.05733059,57525.0,57521.0,0.004913]
[1720789465445,0.17564887,57522.0,57521.0,0.004913]
[1720789465890,0.17564887,57522.0,57521.0,0.003913]
[1720789466547,0.17564887,57523.0,57521.0,0.003913]
[1720789467664,0.17564887,57523.0,57521.0,0.002913]
[1720789467847,0.17566521,57523.0,57521.0,0.003913]
[1720789468105,0.02914912,57524.0,57521.0,0.003913]
[1720789468330,0.20648177,57523.0,57521.0,0.003913]
[1720789468544,0.20648177,57523.0,57521.0,0.002913]
[1720789468771,0.20638177,57523.0,57521.0,0.002913]
[1720789468984,0.17646521,57523.0,57521.0,0.002913]
[1720789469223,0.0008,57523.0,57522.0,0.0797]
[1720789469463,0.0008,57523.0,57522.0,0.1441]
[1720789469685,0.15696102,57523.0,57522.0,0.1441]
[1720789469914,0.0008,57523.0,57522.0,0.1441]
[1720789471698,0.15696713,57523.0,57522.0,0.1441]
[1720789472129,0.17203188,57523.0,57522.0,0.1441]
[1720789472351,0.17123188,57523.0,57522.0,0.1441]
[1720789472570,0.01606475,57523.0,57522.0,0.1501]
[1720789473026,0.01696475,57523.0,57522.0,0.1511]
[1720789473532,0.01696475,57523.0,57522.0,0.5121]
[1720789473533,0.01596475,57523.0,57522.0,0.5121]
[1720789473743,0.01596475,57523.0,57522.0,0.52003515]
[1720789473969,0.01496475,57523.0,57522.0,0.51403515]
[1720789474192,0.01496475,57523.0,57522.0,0.15703515]
[1720789474677,0.01496475,57523.0,57522.0,0.1491]
[1720789474910,0.17579603,57524.0,57522.0,0.1451]
[1720789475126,0.17680908,57523.0,57522.0,0.1511]
[1720789475348,0.001,57523.0,57522.0,0.1511]
[1720789475574,0.17580729,57523.0,57522.0,0.1451]
[1720789476039,0.17580729,57523.0,57522.0,0.1461]
[1720789476259,0.007,57528.0,57522.0,0.1461]
[1720789476947,0.007,57528.0,57522.0,0.1451]
[1720789477167,0.007,57528.0,57522.0,0.0808]
[1720789477382,0.001,57523.0,57522.0,0.0808]
[1720789477839,0.007,57528.0,57522.0,0.0061]
[1720789478063,0.11862208,57527.0,57522.0,0.0061]
[1720789478323,0.11862208,57527.0,57522.0,0.0001]
[1720789478773,0.11862208,57527.0,57519.0,0.146]
[1720789478774,0.001,57523.0,57519.0,0.146]
[1720789479221,0.001,57522.0,57516.0,0.0653]
[1720789479439,0.17591207,57518.0,57516.0,0.0653]
[1720789479688,0.17591207,57517.0,57516.0,0.0653]
[1720789479905,0.17581207,57517.0,57516.0,0.0653]
[1720789480127,0.17581207,57517.0,57516.0,0.15041435]
[1720789480566,0.03124982,57523.0,57516.0,0.15041435]
[1720789480813,0.001,57522.0,57518.0,0.0666]
[1720789481034,0.01670314,57522.0,57519.0,0.0752]
[1720789481283,0.01818761,57523.0,57519.0,0.0752]
[1720789481516,0.01569186,57522.0,57519.0,0.0742]
[1720789481734,0.01569186,57521.0,57519.0,0.0742]
[1720789482005,0.01569186,57520.0,57519.0,0.0742]
[1720789482464,0.01569186,57520.0,57519.0,0.07636353]
[1720789482680,0.01569186,57520.0,57519.0,0.07736353]
[1720789483117,0.01569186,57520.0,57519.0,0.0752]
[1720789483340,0.01569186,57520.0,57519.0,0.27636353]
[1720789483583,0.01569186,57520.0,57519.0,0.2742]
[1720789484036,0.01569186,57520.0,57519.0,0.3393]
[1720789484255,0.01569186,57520.0,57519.0,0.1403]
[1720789484512,0.01559186,57520.0,57519.0,0.1393]
[1720789484734,0.01536371,57520.0,57519.0,0.3517]
[1720789484961,0.01536371,57520.0,57519.0,0.5137]
[1720789485413,0.01536371,57520.0,57519.0,0.5832198]
[1720789485649,0.16818767,57525.0,57524.0,0.262]
[1720789485882,0.01175274,57525.0,57524.0,0.51273515]
[1720789486115,0.17598913,57532.0,57531.0,0.2]
[1720789486345,0.17597452,57532.0,57531.0,0.199]
[1720789486577,0.01818761,57533.0,57529.0,0.199]
[1720789486578,0.19416213,57533.0,57529.0,0.199]
[1720789487047,0.19416213,57533.0,57531.0,0.0778]
[1720789487048,0.17597452,57532.0,57531.0,0.0778]
[1720789487275,0.17597452,57532.0,57531.0,0.0768]
[1720789487511,0.17596224,57532.0,57531.0,0.0768]
[1720789487751,0.01818761,57533.0,57531.0,0.141]
[1720789487984,0.17595859,57532.0,57531.0,0.141]
[1720789488649,0.1941462,57533.0,57531.0,0.141]
[1720789488867,0.1941462,57533.0,57531.0,0.142]
[1720789489072,0.1941462,57533.0,57531.0,0.403]
[1720789489073,0.17595859,57532.0,57531.0,0.403]
[1720789489303,0.20683029,57533.0,57532.0,0.3245]
[1720789489598,0.0308717,57533.0,57532.0,0.2625]
[1720789489836,0.20583029,57533.0,57532.0,0.3245]
[1720789490303,0.0298717,57533.0,57532.0,0.4025]
[1720789491247,0.0308717,57533.0,57532.0,0.4095]
[1720789492109,0.0318717,57533.0,57532.0,0.4165]
[1720789492590,0.0318717,57533.0,57532.0,0.1555]
[1720789492789,0.0318717,57533.0,57532.0,0.4165]
[1720789493560,0.04632666,57533.0,57532.0,0.1555]
[1720789494622,0.04632672,57533.0,57532.0,0.1555]
[1720789494857,0.04432672,57533.0,57532.0,0.1415]
[1720789495089,0.04432674,57533.0,57532.0,0.1495]
[1720789495328,0.04632674,57533.0,57532.0,0.1575]
[1720789495571,0.15629897,57540.0,57539.0,0.36893515]
[1720789495797,0.15629897,57542.0,57541.0,0.3422]
[1720789496013,0.15629897,57545.0,57544.0,0.5042]
[1720789496232,0.15629897,57548.0,57547.0,0.199]
[1720789496449,0.15629897,57550.0,57549.0,0.261]
[1720789496665,0.741,57557.0,57544.0,0.08511435]
[1720789496666,0.91687434,57557.0,57555.0,0.1414]
[1720789496907,0.741,57557.0,57555.0,0.3404]
[1720789497589,0.741,57557.0,57555.0,0.1414]
[1720789497590,0.4695459,57557.0,57555.0,0.1414]
[1720789497811,0.3135,57557.0,57555.0,0.1414]
[1720789498018,0.4695457,57557.0,57555.0,0.1414]
[1720789498248,0.51650027,57557.0,57555.0,0.1414]
[1720789498961,0.51650027,57557.0,57555.0,0.1424]
[1720789499400,0.4695457,57557.0,57555.0,0.1424]
[1720789499606,0.3135,57557.0,57555.0,0.1424]
[1720789499832,0.3135,57557.0,57555.0,0.1434]
[1720789500047,0.1560457,57559.0,57555.0,0.1434]
[1720789500914,0.15587956,57559.0,57555.0,0.1424]
[1720789501337,0.18057565,57559.0,57555.0,0.1424]
[1720789501554,0.18057565,57559.0,57555.0,0.1414]
[1720789501757,0.02469609,57559.0,57555.0,0.1414]
[1720789501989,0.02569609,57559.0,57555.0,0.1414]
[1720789502244,0.12980037,57556.0,57555.0,0.1414]
[1720789502450,0.12980037,57557.0,57555.0,0.1414]
[1720789502923,0.12980037,57556.0,57555.0,0.4024]
[1720789503160,0.1038,57556.0,57555.0,0.4024]
[1720789503389,0.11824912,57556.0,57555.0,0.4024]
[1720789503659,0.01444912,57556.0,57555.0,0.4024]
[1720789503887,0.01444912,57556.0,57555.0,0.4025]
[1720789504118,0.10379215,57557.0,57556.0,0.261]
[1720789504119,0.10379174,57557.0,57556.0,0.261]
[1720789504478,0.10379174,57557.0,57555.0,0.1445]
[1720789504479,0.10379174,57560.0,57558.0,0.261]
[1720789504725,0.01444874,57559.0,57558.0,0.261]
[1720789504930,0.01444874,57559.0,57558.0,0.3438]
[1720789505378,0.12973967,57562.0,57560.0,0.199]
[1720789505379,0.10379174,57562.0,57560.0,0.199]
[1720789505610,0.01444854,57561.0,57560.0,0.199]
[1720789505828,0.01444854,57561.0,57560.0,0.258]
[1720789506052,0.01444854,57561.0,57560.0,0.0653]
[1720789507208,0.01133936,57565.0,57560.0,0.0653]
[1720789507398,0.01444849,57564.0,57560.0,0.0653]
[1720789507657,0.01444849,57563.0,57560.0,0.0643]
[1720789507865,0.01444849,57562.0,57560.0,0.0643]
[1720789508075,0.01444849,57561.0,57560.0,0.0643]
[1720789508288,0.004,57561.0,57560.0,0.0643]
[1720789508486,0.003,57561.0,57560.0,0.0643]
[1720789508974,0.003,57561.0,57560.0,0.1486]
[1720789509205,0.003,57561.0,57560.0,0.1476]
[1720789509650,0.006,57561.0,57560.0,0.1476]
[1720789511043,0.006,57561.0,57555.0,0.0001]
[1720789511044,0.09206485,57559.0,57555.0,0.0001]
[1720789511257,0.09206485,57559.0,57549.0,0.0811]
[1720789511258,0.057114,57558.0,57549.0,0.0811]
[1720789511476,0.0144491,57557.0,57549.0,0.0811]
[1720789512152,0.0144491,57558.0,57549.0,0.0811]
[1720789512377,0.0543,57555.0,57545.0,0.0826]
[1720789512656,0.0144491,57554.0,57545.0,0.0826]
[1720789512845,0.0144491,57553.0,57545.0,0.0826]
[1720789512994,0.0144491,57552.0,57545.0,0.0826]
[1720789513199,0.0144491,57551.0,57545.0,0.0826]
[1720789513410,0.01445156,57550.0,57545.0,0.0826]
[1720789513623,0.01445156,57549.0,57545.0,0.0826]
[1720789513834,0.01445156,57555.0,57545.0,0.0826]
[1720789514034,0.01445156,57554.0,57545.0,0.0826]
[1720789514449,0.03425944,57555.0,57545.0,0.0826]
[1720789516019,0.03525944,57555.0,57545.0,0.0826]
[1720789517393,0.13894888,57555.0,57545.0,0.0826]
[1720789517621,0.001,57555.0,57547.0,0.196]
[1720789517835,0.0009,57555.0,57548.0,0.0626]
[1720789518507,0.10368944,57557.0,57548.0,0.0626]
[1720789518991,0.001,57555.0,57548.0,0.0626]
[1720789519468,0.10368944,57557.0,57548.0,0.0626]
[1720789519702,0.001,57555.0,57553.0,0.196]
[1720789519927,0.001,57555.0,57552.0,0.2033]
[1720789519928,0.001,57555.0,57552.0,0.3373]
[1720789520383,0.001,57555.0,57553.0,0.196]
[1720789520879,0.002,57555.0,57554.0,0.3339]
[1720789521112,0.001,57555.0,57554.0,0.4955]
[1720789521573,0.003,57557.0,57556.0,0.258]
[1720789521800,0.003,57557.0,57556.0,0.196]
[1720789522048,0.00083,57558.0,57554.0,0.2375]
[1720789522493,0.001,57555.0,57554.0,0.2445]
[1720789522957,0.00083,57558.0,57554.0,0.2375]
[1720789523390,0.01444861,57557.0,57554.0,0.2375]
[1720789523605,0.00083,57558.0,57554.0,0.2375]
[1720789523821,0.01444852,57557.0,57554.0,0.2375]
[1720789524047,0.01444852,57556.0,57555.0,0.196]
[1720789524501,0.01444852,57556.0,57554.0,0.2995]
[1720789524502,0.00083,57558.0,57557.0,0.0811]
[1720789524742,0.01527897,57558.0,57557.0,0.3381]
[1720789524975,0.01527897,57558.0,57557.0,0.4044]
[1720789525205,0.01527897,57558.0,57557.0,0.5044]
[1720789525852,0.01527897,57558.0,57557.0,0.5074]
[1720789526086,0.01527897,57558.0,57557.0,0.2534]
[1720789526313,0.01527897,57558.0,57557.0,0.0871]
[1720789526549,0.01527945,57558.0,57557.0,0.006]
[1720789527432,0.01527945,57558.0,57557.0,0.003]
[1720789527722,0.01527945,57558.0,57554.0,0.15173515]
[1720789527945,0.01444945,57557.0,57554.0,0.15173515]
[1720789528190,0.01444945,57556.0,57554.0,0.15173515]
[1720789528410,0.01444945,57555.0,57554.0,0.15173515]
[1720789529746,0.00083,57558.0,57554.0,0.15173515]
[1720789529963,0.01444915,57557.0,57554.0,0.15173515]
[1720789530193,0.01444915,57556.0,57554.0,0.1438]
[1720789530415,0.01444915,57555.0,57554.0,0.15173515]
[1720789530902,0.01444915,57555.0,57554.0,0.15273515]
[1720789531111,0.01444915,57555.0,57554.0,0.15173515]
[1720789531815,0.01444915,57555.0,57554.0,0.35153851]
[1720789532033,0.01444915,57555.0,57554.0,0.15653851]
[1720789532476,0.01444915,57555.0,57554.0,0.15753851]
[1720789533132,0.01444917,57555.0,57554.0,0.15753851]
[1720789533629,0.01444915,57555.0,57554.0,0.25753851]
[1720789535309,0.01444915,57555.0,57554.0,0.51453851]
[1720789536477,0.10486942,57558.0,57557.0,0.4995]
[1720789536722,0.01527832,57558.0,57557.0,0.4995]
[1720789536898,0.01527832,57558.0,57557.0,0.50429065]
[1720789537339,0.01527832,57558.0,57557.0,0.24729065]
[1720789537781,0.01827832,57558.0,57557.0,0.24729065]
[1720789537964,0.01827832,57558.0,57557.0,0.44229065]
[1720789538395,0.02127832,57558.0,57557.0,0.44229065]
[1720789538610,0.02127832,57558.0,57557.0,0.50429065]
[1720789538826,0.02127832,57558.0,57557.0,0.44229065]
[1720789539707,0.00683,57558.0,57557.0,0.44229065]
[1720789539934,0.02127832,57558.0,57557.0,0.50429065]
[1720789540372,0.02127832,57558.0,57557.0,0.5122258]
[1720789540587,0.02127832,57558.0,57557.0,0.50429065]
[1720789540814,0.03946593,57558.0,57557.0,0.5122258]
[1720789541282,0.03646593,57558.0,57557.0,0.5122258]
[1720789541504,0.03646593,57558.0,57557.0,0.14729065]
[1720789541505,0.05387782,57558.0,57557.0,0.14729065]
[1720789541766,0.05387782,57558.0,57557.0,0.01079065]
[1720789541767,0.03446593,57558.0,57557.0,0.01079065]
[1720789541972,0.03446593,57558.0,57557.0,0.011]
[1720789542183,0.03446593,57558.0,57557.0,0.01558894]
[1720789543069,0.03446767,57558.0,57557.0,0.01558894]
[1720789543572,0.03446786,57558.0,57557.0,0.01558894]
[1720789543775,0.56214622,57558.0,57545.0,0.08813515]
[1720789543995,0.01535025,57557.0,57547.0,0.257]
[1720789544241,0.17598682,57550.0,57547.0,0.257]
[1720789544451,0.01445025,57549.0,57548.0,0.25956175]
[1720789544670,0.17598682,57551.0,57549.0,0.397]
[1720789544938,0.01445013,57550.0,57549.0,0.497]
[1720789546014,0.01901761,57558.0,57549.0,0.357]
[1720789546247,0.01901761,57558.0,57551.0,0.3343]
[1720789546248,0.17596118,57552.0,57551.0,0.3343]
[1720789546465,0.19041124,57552.0,57551.0,0.4343]
[1720789547617,0.19041124,57552.0,57551.0,0.4353]
[1720789549672,0.01901761,57558.0,57553.0,0.1]
[1720789549888,0.01901761,57558.0,57553.0,0.355]
[1720789549889,0.01445028,57557.0,57553.0,0.355]
[1720789550097,0.01445028,57556.0,57553.0,0.1]
[1720789550309,0.01445028,57555.0,57553.0,0.355]
[1720789550517,0.01445028,57554.0,57553.0,0.1]
[1720789550728,0.01445028,57554.0,57553.0,0.355]
[1720789550932,0.01445028,57554.0,57553.0,0.357]
[1720789551143,0.01445028,57554.0,57553.0,0.5001]
[1720789551569,0.01445028,57554.0,57553.0,0.50366426]
[1720789551990,0.01545028,57554.0,57553.0,0.50366426]
[1720789552656,0.01645028,57554.0,57553.0,0.50366426]
[1720789552924,0.001,57554.0,57553.0,0.50366426]
[1720789553126,0.01544898,57554.0,57553.0,0.50366426]
[1720789553378,0.01544925,57554.0,57553.0,0.50366426]
[1720789553790,0.01444925,57554.0,57553.0,0.50766426]
[1720789554227,0.01444925,57554.0,57553.0,0.51166426]
[1720789554889,0.01444925,57554.0,57553.0,0.25466426]
[1720789555307,0.01444925,57554.0,57553.0,0.50966426]
[1720789555760,0.01444925,57554.0,57553.0,0.25466426]
[1720789556214,0.01444912,57554.0,57553.0,0.25466426]
[1720789556473,0.01444912,57554.0,57553.0,0.01256426]
[1720789556689,0.03539199,57554.0,57553.0,0.01256426]
[1720789556914,0.01444912,57554.0,57553.0,0.01256426]
[1720789557174,0.08614912,57554.0,57553.0,0.01256426]
[1720789557611,0.08614912,57554.0,57553.0,0.008]
[1720789557815,0.08614912,57554.0,57553.0,0.004]
[1720789558038,0.08230667,57554.0,57553.0,0.004]
[1720789558257,0.08035782,57554.0,57553.0,0.004]
[1720789558481,0.02605782,57554.0,57553.0,0.004]
[1720789558743,0.01545115,57554.0,57545.0,0.26503515]
[1720789558957,0.17598083,57548.0,57545.0,0.26503515]
[1720789559160,0.01445115,57547.0,57546.0,0.00435218]
[1720789559608,0.01445115,57547.0,57546.0,0.01228733]
[1720789559609,0.03263863,57547.0,57546.0,0.01228733]
[1720789560269,0.03263863,57547.0,57546.0,0.00435218]
[1720789560481,0.2086422,57547.0,57546.0,0.01228733]
[1720789560685,0.03263863,57547.0,57546.0,0.01228733]
[1720789561359,0.2086422,57547.0,57546.0,0.01228733]
[1720789561581,0.03263863,57547.0,57546.0,0.01228733]
[1720789561775,0.03263863,57547.0,57546.0,0.44498733]
[1720789562034,0.03363832,57547.0,57546.0,0.51908733]
[1720789562256,0.19009386,57547.0,57546.0,0.51908733]
[1720789562491,0.01140572,57559.0,57546.0,0.51908733]
[1720789562492,0.3126465,57563.0,57554.0,0.1]
[1720789562705,0.3126465,57563.0,57555.0,0.1457]
[1720789562930,0.05597386,57563.0,57555.0,0.4027]
[1720789563144,0.01818761,57562.0,57555.0,0.4027]
[1720789563603,0.01818761,57562.0,57556.0,0.00435762]
[1720789564264,0.01818761,57562.0,57557.0,0.257]
[1720789564473,0.01818761,57562.0,57559.0,0.195]
[1720789564691,0.01818761,57562.0,57560.0,0.00306353]
[1720789564925,0.02818761,57562.0,57560.0,0.00306353]
[1720789565155,0.02818761,57562.0,57561.0,0.00435499]
[1720789565371,0.01818761,57562.0,57561.0,0.00435499]
[1720789565827,0.01818761,57562.0,57556.0,0.1]
[1720789565828,0.01818761,57562.0,57557.0,0.00306353]
[1720789566078,0.01818761,57562.0,57561.0,0.00435499]
[1720789566311,0.01818761,57562.0,57557.0,0.00306353]
[1720789566312,0.01818761,57562.0,57558.0,0.00435499]
[1720789566533,0.01818761,57562.0,57556.0,0.295]
[1720789566762,0.01818761,57562.0,57559.0,0.00435499]
[1720789566987,0.01818761,57562.0,57556.0,0.295]
[1720789567206,0.01818761,57562.0,57560.0,0.00435499]
[1720789567425,0.01818761,57562.0,57557.0,0.00406353]
[1720789567639,0.02818761,57562.0,57561.0,0.00435499]
[1720789567862,0.04018761,57562.0,57561.0,0.00435499]
[1720789568106,0.03018761,57562.0,57561.0,0.00435499]
[1720789568323,0.03018761,57562.0,57557.0,0.00306353]
[1720789568324,0.04018761,57562.0,57557.0,0.00306353]
[1720789568541,0.04018761,57562.0,57561.0,0.00435499]
[1720789568726,0.03018761,57562.0,57557.0,0.00306353]
[1720789568973,0.01818761,57562.0,57561.0,0.00435499]
[1720789569190,0.02818761,57562.0,57561.0,0.001]
[1720789569418,0.02818761,57562.0,57561.0,0.00535572]
[1720789569632,0.03918761,57562.0,57561.0,0.001]
[1720789569851,0.03918761,57562.0,57561.0,0.00535572]
[1720789570549,0.05363675,57562.0,57561.0,0.26135572]
[1720789570778,0.42261927,57568.0,57562.0,0.195]
[1720789571045,0.42261927,57568.0,57563.0,0.19806353]
[1720789571261,0.01818761,57566.0,57563.0,0.19806353]
[1720789571493,0.01818761,57566.0,57563.0,0.00741925]
[1720789572157,0.00458075,57562.0,57561.0,0.1443]
[1720789572415,0.01458075,57562.0,57561.0,0.1443]
[1720789572636,0.01458075,57562.0,57561.0,0.1433]
[1720789572849,0.01818761,57566.0,57561.0,0.1433]
[1720789573287,0.02218761,57566.0,57563.0,0.195]
[1720789573499,0.02218761,57566.0,57561.0,0.1433]
[1720789573756,0.02218761,57566.0,57562.0,0.195]
[1720789573978,0.02218761,57566.0,57561.0,0.1433]
[1720789574217,0.02218761,57566.0,57561.0,0.0776]
[1720789574218,0.10046448,57566.0,57561.0,0.0776]
[1720789574434,0.0543,57565.0,57557.0,0.1]
[1720789574864,0.0543,57565.0,57555.0,0.11922614]
[1720789575101,0.00306353,57564.0,57555.0,0.11922614]
[1720789575321,0.1760554,57556.0,57555.0,0.11922614]
[1720789575551,0.03217203,57564.0,57555.0,0.11922614]
[1720789576675,0.00306353,57564.0,57555.0,0.11922614]
[1720789577551,0.17605718,57556.0,57555.0,0.11922614]
[1720789577694,0.00306353,57564.0,57555.0,0.31422614]
[1720789577916,0.17605713,57556.0,57555.0,0.31422614]
[1720789578111,0.00306353,57564.0,57555.0,0.11922614]
[1720789578378,0.0332303,57563.0,57555.0,0.11922614]
[1720789578596,0.0543,57565.0,57555.0,0.31422614]
[1720789578819,0.1760568,57556.0,57555.0,0.31432614]
[1720789579031,0.01444906,57556.0,57555.0,0.31432614]
[1720789579238,0.01444906,57556.0,57555.0,0.11932614]
[1720789579452,0.01444906,57563.0,57555.0,0.12332614]
[1720789579684,0.04767912,57563.0,57556.0,0.00415363]
[1720789579960,0.01444906,57562.0,57556.0,0.00415363]
[1720789581038,0.01444906,57562.0,57556.0,0.19915363]
[1720789581253,0.01444906,57561.0,57556.0,0.19915363]
[1720789581465,0.17605552,57557.0,57556.0,0.28426798]
[1720789581687,0.19050458,57557.0,57556.0,0.28426798]
[1720789581937,0.01444854,57557.0,57556.0,0.34526798]
[1720789582829,0.01444854,57557.0,57556.0,0.28426798]
[1720789583060,0.19049751,57557.0,57556.0,0.00415363]
[1720789583281,0.01444854,57557.0,57556.0,0.00415363]
[1720789584894,0.01444854,57557.0,57556.0,0.01315363]
[1720789585119,0.01444932,57557.0,57556.0,0.01315363]
[1720789585550,0.01444936,57557.0,57556.0,0.01304395]
[1720789586683,0.03263697,57557.0,57556.0,0.01304395]
[1720789586900,0.03263697,57557.0,57556.0,0.00851276]
[1720789586901,0.04307067,57557.0,57556.0,0.00851276]
[1720789587126,0.04307067,57557.0,57556.0,0.00396595]
[1720789587378,0.04307067,57557.0,57547.0,0.45682516]
[1720789587657,0.2743426,57556.0,57547.0,0.45682516]
[1720789587852,0.30700916,57555.0,57548.0,0.00396595]
[1720789588079,0.01751567,57554.0,57548.0,0.00396595]
[1720789588303,0.00306353,57554.0,57548.0,0.00396595]
[1720789588523,0.01445211,57553.0,57548.0,0.00396595]
[1720789588755,0.04494971,57552.0,57548.0,0.00396595]
[1720789589010,0.01445211,57551.0,57548.0,0.00396595]
[1720789589243,0.01751564,57550.0,57548.0,0.00396595]
[1720789589465,0.01445211,57549.0,57548.0,0.00396595]
[1720789590154,0.01445211,57549.0,57548.0,0.00496595]
[1720789590803,0.01445211,57549.0,57548.0,0.00396595]
[1720789591517,0.01435211,57549.0,57548.0,0.00396595]
[1720789591724,0.00306353,57556.0,57548.0,0.00396595]
[1720789591936,0.0174,57553.0,57548.0,0.00396595]
[1720789592144,0.00306353,57552.0,57548.0,0.00396595]
[1720789592360,0.00306353,57552.0,57548.0,0.007]
[1720789592576,0.00306353,57552.0,57549.0,0.16361435]
[1720789592819,0.02931954,57557.0,57549.0,0.16361435]
[1720789592820,0.00306353,57555.0,57549.0,0.16361435]
[1720789593031,0.00306353,57555.0,57550.0,0.00398262]
[1720789593244,0.00306353,57556.0,57549.0,0.16361435]
[1720789593481,0.00306353,57556.0,57549.0,0.35861435]
[1720789593712,0.00306353,57556.0,57550.0,0.195]
[1720789593959,0.00306353,57556.0,57552.0,0.195]
[1720789594175,0.02931954,57557.0,57552.0,0.256]
[1720789594406,0.02931954,57557.0,57556.0,0.192]
[1720789594625,0.02931954,57557.0,57556.0,0.0825]
[1720789594835,0.02931954,57557.0,57556.0,0.0795]
[1720789595044,0.02931954,57557.0,57556.0,0.08348347]
[1720789595271,0.02931954,57557.0,57556.0,0.08048347]
[1720789595495,0.02931954,57557.0,57556.0,0.33348347]
[1720789595707,0.20530187,57557.0,57556.0,0.39368347]
[1720789595923,0.02931954,57557.0,57556.0,0.39368347]
[1720789596129,0.02931954,57557.0,57556.0,0.33268347]
[1720789596343,0.02931954,57557.0,57556.0,0.14068347]
[1720789596566,0.02931954,57557.0,57556.0,0.33268347]
[1720789596773,0.02931954,57557.0,57556.0,0.57879782]
[1720789597223,0.03331954,57557.0,57556.0,0.57879782]
[1720789597885,0.02931954,57557.0,57556.0,0.57879782]
[1720789598331,0.02931954,57557.0,57556.0,0.58179782]
[1720789598541,0.02931954,57557.0,57556.0,0.59079782]
[1720789598755,0.02931954,57557.0,57556.0,0.58179782]
[1720789599253,0.02931954,57557.0,57556.0,0.59179782]
[1720789599474,0.0437677,57557.0,57556.0,0.59179782]
[1720789599694,0.20016076,57557.0,57556.0,0.63582396]
[1720789600132,0.20016076,57557.0,57556.0,0.63282396]
[1720789600356,0.20016076,57557.0,57556.0,0.64182396]
[1720789600795,0.20014752,57557.0,57556.0,0.64182396]
[1720789601007,0.0437677,57557.0,57556.0,0.64182396]
[1720789601224,0.20014407,57557.0,57556.0,0.64182396]
[1720789601444,0.04376718,57557.0,57556.0,0.64182396]
[1720789601661,0.20013815,57557.0,57556.0,0.64182396]
[1720789602515,0.04376718,57557.0,57556.0,0.64182396]
[1720789602998,0.20012913,57557.0,57556.0,0.64182396]
[1720789603414,0.20012913,57557.0,57556.0,0.70182396]
[1720789603415,0.04376718,57557.0,57556.0,0.70182396]
[1720789603643,0.03263525,57557.0,57556.0,0.64182396]
[1720789604087,0.04146703,57565.0,57564.0,0.3374]
[1720789604340,0.069678,57573.0,57564.0,0.4374]
[1720789604560,0.069678,57573.0,57566.0,0.253]
[1720789604797,0.069678,57573.0,57567.0,0.192]
[1720789605041,0.069678,57573.0,57564.0,0.1454]
[1720789605266,0.0234,57571.0,57564.0,0.079]
[1720789605489,0.0234,57571.0,57565.0,0.00396518]
[1720789605703,0.0381378,57571.0,57565.0,0.00396518]
[1720789607448,0.0147378,57571.0,57565.0,0.00396518]
[1720789607882,0.00306353,57570.0,57565.0,0.00396518]
[1720789608124,0.00306353,57570.0,57565.0,0.00391972]
[1720789608351,0.0147378,57571.0,57565.0,0.00391972]
[1720789608578,0.0147378,57571.0,57565.0,0.001]
[1720789608798,0.0147378,57571.0,57566.0,0.00391972]
[1720789609251,0.0207378,57571.0,57566.0,0.00391972]
[1720789609486,0.00306353,57570.0,57566.0,0.00391972]
[1720789609920,0.0147378,57571.0,57566.0,0.00391972]
[1720789610326,0.17584451,57567.0,57566.0,0.25691972]
[1720789610561,0.17584451,57568.0,57566.0,0.25691972]
[1720789610853,0.17584451,57569.0,57566.0,0.25691972]
[1720789611288,0.17584451,57570.0,57567.0,0.192]
[1720789611501,0.17581496,57570.0,57567.0,0.192]
[1720789611721,0.17581496,57570.0,57568.0,0.00391192]
[1720789611965,0.01444615,57569.0,57568.0,0.00391192]
[1720789612205,0.01444615,57569.0,57566.0,0.001]
[1720789612206,0.01444615,57569.0,57566.0,0.193]
[1720789612422,0.004,57569.0,57568.0,0.00391192]
[1720789612641,0.004,57569.0,57566.0,0.192]
[1720789612880,0.08078984,57573.0,57568.0,0.00391192]
[1720789613126,0.01444705,57572.0,57569.0,0.00391192]